fUSD/lending_fUSD_20250105
["ID","MTS","AMOUNT","RATE_DAILY","PERIOD"]
[347780543,1736103056956,-500.0,0.00011369,2]
[347780544,1736103056965,-906.64,0.00011369,2]
[347780545,1736103056975,-680.52,0.00011369,2]
[347780546,1736103056985,-1427.5,0.00011369,2]
[347780547,1736103056995,-782.8,0.00011369,2]
[347780548,1736103057005,-1891.76,0.00011369,2]
[347780549,1736103057014,-500.0,0.00011369,2]
[347780550,1736103057024,-4452.97886716,0.00011433,2]
[347780551,1736103057034,-11477.43380364,0.00011433,2]
[347780552,1736103057309,-563.37776736,0.00011433,2]
[347780553,1736103057321,-436.65728887,0.00011433,2]
[347780554,1736103057333,-840.00834718,0.00011433,2]
[347780555,1736103057351,-748.0000006,0.00010546,2]
[347780556,1736103057572,-1980.83,9.999e-05,2]
[347780557,1736103057582,-322.10259032,0.00010347,2]
[347780558,1736103057592,-1686.4099994,0.00010546,2]
[347780559,1736103057603,-500.0,0.00010546,2]
[347780560,1736103057613,-2434.41,0.0001082,2]
[347780561,1736103057622,-500.0,0.0001082,2]
[347780562,1736103057632,-2434.41,0.00011094,2]
[347780563,1736103057642,-500.0,0.00011094,2]
[347780564,1736103057651,-2434.41,0.00011368,2]
[347780565,1736103057661,-500.0,0.00011368,2]
[347780566,1736103057670,-5606.28589771,0.00011433,2]
[347780567,1736103057735,-997.49050982,0.00011433,2]
[347780568,1736103057746,-318.85,0.00011433,2]
[347780569,1736103057757,-1803.82920904,0.00011433,2]
[347780570,1736103057769,-512.56528478,0.00011433,2]
[347780571,1736103057778,-218.408779,0.00011459,2]
[347780572,1736103057787,-218.408779,0.00011459,2]
[347780573,1736103057796,-13.87929943,0.00011479,2]
[347780574,1736103057808,-326.1062992,0.00011479,2]
[347780575,1736103057832,-96.80440137,0.00011479,2]
[347780576,1736103057841,-436.94,0.00011479,2]
[347780577,1736103057851,-231.84710048,0.00011479,2]
[347780578,1736103057862,-1453.7,0.00011479,2]
[347780579,1736103057873,-272.83289952,0.00011479,2]
[347780580,1736103057883,-150.0,0.00011479,2]
[347780581,1736103057892,-418.54,0.00011479,2]
[347780582,1736103057902,-150.0,0.00011479,2]
[347780583,1736103057912,-436.94,0.00011479,2]
[347780584,1736103057921,-150.0,0.00011479,2]
[347780585,1736103057931,-436.94,0.00011479,2]
[347780586,1736103057941,-150.0,0.00011479,2]
[347780587,1736103057950,-300.0,0.00011479,2]
[347780588,1736103057960,-436.94,0.00011479,2]
[347780589,1736103057969,-150.0,0.00011479,2]
[347780590,1736103057978,-436.94,0.00011479,2]
[347780591,1736103057989,-590.02,0.00011479,2]
[347780592,1736103057999,-5712.9664674,0.00011486,2]
[347780593,1736103058012,-471.19,0.00011486,2]
[347780594,1736103058025,-8672.10031108,0.00011486,2]
[347780595,1736103058037,-1420.97594,0.00011486,2]
[347780596,1736103058602,-1663.49648519,0.0001,2]
[347780597,1736103058612,-1980.83,0.00010273,2]
[347780598,1736103058621,-1980.83,0.00010547,2]
[347780599,1736103058630,-1980.83,0.00010821,2]
[347780600,1736103058641,-1980.83,0.00011095,2]
[347780601,1736103058650,-4657.93767121,0.00011486,2]
[347780602,1736103058661,-121435.00416826,0.000115,2]
[347780603,1736103058673,-119578.9427427,0.000115,2]
[347780604,1736103058702,-41381.87442185,0.000115,2]
[347780605,1736103058711,-567.0,0.00011507,2]
[347780606,1736103058721,-2751.0,0.00011507,2]
[347780607,1736103058731,-177.0,0.00011507,2]
[347780608,1736103058741,-567.0,0.00011507,2]
[347780609,1736103058751,-1029.96,0.00011599,2]
[347780610,1736103058761,-1239.98,0.000116,2]
[347780611,1736103058771,-509.56,0.000116,2]
[347780612,1736103058780,-741.25,0.000116,2]
[347780613,1736103058790,-618.04,0.000116,2]
[347780614,1736103058800,-615.62,0.000116,2]
[347780615,1736103058809,-500.0,0.000116,2]
[347780616,1736103058819,-500.0,0.000116,2]
[347780617,1736103058828,-20935.17038969,0.00011628,2]
[347780618,1736103058838,-152.429211,0.0001163,3]
[347780619,1736103058847,-500.0,0.00011641,2]
[347780620,1736103058856,-500.0,0.00011641,2]
[347780621,1736103058866,-500.0,0.00011642,2]
[347780622,1736103058875,-529.63839235,0.00011642,2]
[347780623,1736103058884,-500.0,0.00011642,2]
[347780624,1736103058894,-500.0,0.00011642,2]
[347780625,1736103058904,-500.0,0.00011642,2]
[347780626,1736103058914,-592.62,0.00011642,2]
[347780627,1736103058924,-500.0,0.00011642,2]
[347780628,1736103058933,-500.0,0.00011642,2]
[347780629,1736103058943,-500.0,0.00011642,2]
[347780630,1736103058952,-538.96,0.00011642,2]
[347780631,1736103058961,-282.13265869,0.00011642,2]
[347780632,1736103058970,-500.0,0.00011642,2]
[347780633,1736103058980,-527.57,0.00011642,2]
[347780634,1736103058990,-500.0,0.00011642,2]
[347780635,1736103059000,-500.0,0.00011642,2]
[347780636,1736103059010,-500.0,0.00011642,2]
[347780637,1736103059020,-500.0,0.00011642,2]
[347780638,1736103059029,-500.0,0.00011642,2]
[347780639,1736103059038,-500.0,0.00011642,2]
[347780640,1736103059047,-500.0,0.00011642,2]
[347780641,1736103059058,-500.0,0.00011642,2]
[347780642,1736103059067,-500.0,0.00011642,2]
[347780643,1736103059077,-500.0,0.00011642,2]
[347780644,1736103059087,-574.69,0.00011642,2]
[347780645,1736103059096,-500.0,0.00011642,2]
[347780646,1736103059105,-500.0,0.00011642,2]
[347780647,1736103059115,-500.0,0.00011642,2]
[347780648,1736103059124,-500.0,0.00011642,2]
[347780649,1736103059132,-567.36,0.00011642,2]
[347780650,1736103059141,-500.0,0.00011642,2]
[347780651,1736103059151,-500.0,0.00011642,2]
[347780652,1736103059160,-500.0,0.00011642,2]
[347780653,1736103059169,-531.46,0.00011642,2]
[347780654,1736103059179,-500.0,0.00011642,2]
[347780655,1736103059190,-500.0,0.00011642,2]
[347780656,1736103059202,-500.0,0.00011642,2]
[347780657,1736103059212,-500.0,0.00011642,2]
[347780658,1736103059221,-500.0,0.00011642,2]
[347780659,1736103059232,-500.0,0.00011642,2]
[347780660,1736103059243,-500.0,0.00011642,2]
[347780661,1736103059253,-500.0,0.00011642,2]
[347780662,1736103059262,-500.0,0.00011642,2]
[347780663,1736103059272,-500.0,0.00011642,2]
[347780664,1736103059284,-500.0,0.00011642,2]
[347780665,1736103059294,-500.0,0.00011642,2]
[347780666,1736103059304,-500.0,0.00011642,2]
[347780667,1736103059314,-500.0,0.00011642,2]
[347780668,1736103059324,-500.0,0.00011642,2]
[347780669,1736103059335,-536.12,0.00011642,2]
[347780670,1736103059346,-309.29176487,0.00011642,2]
[347780671,1736103059357,-500.0,0.00011642,2]
[347780672,1736103059367,-500.0,0.00011642,2]
[347780673,1736103059377,-500.0,0.00011642,2]
[347780674,1736103059386,-500.0,0.00011642,2]
[347780675,1736103059397,-500.0,0.00011642,2]
[347780676,1736103059408,-506.23,0.00011642,2]
[347780677,1736103059418,-500.0,0.00011642,2]
[347780678,1736103059428,-500.0,0.00011642,2]
[347780679,1736103059438,-500.0,0.00011642,2]
[347780680,1736103059448,-500.0,0.00011642,2]
[347780681,1736103059459,-500.0,0.00011642,2]
[347780682,1736103059469,-500.0,0.00011642,2]
[347780683,1736103059478,-526.25,0.00011642,2]
[347780684,1736103059487,-500.0,0.00011642,2]
[347780685,1736103059497,-500.0,0.00011642,2]
[347780686,1736103059507,-500.0,0.00011642,2]
[347780687,1736103059517,-500.0,0.00011642,2]
[347780688,1736103059526,-500.0,0.00011642,2]
[347780689,1736103059536,-500.0,0.00011642,2]
[347780690,1736103059545,-500.0,0.00011642,2]
[347780691,1736103059554,-500.0,0.00011642,2]
[347780692,1736103059564,-500.0,0.00011642,2]
[347780693,1736103059575,-500.0,0.00011642,2]
[347780694,1736103059584,-576.97,0.00011642,2]
[347780695,1736103059593,-505.65,0.00011642,2]
[347780696,1736103059604,-806.04,0.00011642,2]
[347780697,1736103059613,-500.0,0.00011642,2]
[347780698,1736103059623,-500.0,0.00011642,2]
[347780699,1736103059632,-534.25260941,0.00011642,2]
[347780700,1736103059642,-1511.62,0.00011642,2]
[347780701,1736103059652,-500.0,0.00011642,2]
[347780702,1736103059662,-500.0,0.00011642,2]
[347780703,1736103059672,-500.0,0.00011642,2]
[347780704,1736103059682,-625.8,0.00011642,2]
[347780705,1736103059692,-500.0,0.00011642,2]
[347780706,1736103059702,-500.0,0.00011642,2]
[347780707,1736103059711,-500.0,0.00011642,2]
[347780708,1736103059721,-500.0,0.00011642,2]
[347780709,1736103059731,-621.59,0.00011642,2]
[347780710,1736103059741,-878.65,0.00011642,2]
[347780711,1736103059752,-958.77,0.00011642,2]
[347780712,1736103059761,-500.0,0.00011642,2]
[347780713,1736103059772,-1241.97,0.00011642,2]
[347780714,1736103059781,-332.32983397,0.00011642,2]
[347780715,1736103059791,-752.45,0.00011642,2]
[347780716,1736103059800,-500.0,0.00011642,2]
[347780717,1736103059810,-500.0,0.00011642,2]
[347780718,1736103059819,-1313.29,0.00011642,2]
[347780719,1736103059828,-500.0,0.00011642,2]
[347780720,1736103059839,-680.95,0.00011642,2]
[347780721,1736103059848,-500.0,0.00011642,2]
[347780722,1736103059858,-500.0,0.00011642,2]
[347780723,1736103059868,-500.0,0.00011642,2]
[347780724,1736103059879,-1684.17,0.00011642,2]
[347780725,1736103059888,-500.0,0.00011642,2]
[347780726,1736103059898,-500.0,0.00011642,2]
[347780727,1736103059908,-848.15,0.00011642,2]
[347780728,1736103059918,-500.0,0.00011642,2]
[347780729,1736103059927,-500.0,0.00011642,2]
[347780730,1736103059936,-500.0,0.00011642,2]
[347780731,1736103059946,-500.0,0.00011642,2]
[347780732,1736103059956,-1136.02,0.00011642,2]
[347780733,1736103059966,-294.71456496,0.00011642,2]
[347780734,1736103059976,-1677.47,0.00011642,2]
[347780735,1736103059986,-500.0,0.00011642,2]
[347780736,1736103059996,-1437.26,0.00011642,2]
[347780737,1736103060006,-735.56,0.00011642,2]
[347780738,1736103060016,-1062.37,0.00011642,2]
[347780739,1736103060025,-535.81,0.00011642,2]
[347780740,1736103060035,-500.0,0.00011642,2]
[347780741,1736103060045,-500.0,0.00011642,2]
[347780742,1736103060055,-500.0,0.00011642,2]
[347780743,1736103060065,-500.0,0.00011642,2]
[347780744,1736103060075,-500.0,0.00011642,2]
[347780745,1736103060084,-2163.21,0.00011642,2]
[347780746,1736103060094,-2584.43,0.00011642,2]
[347780747,1736103060104,-500.0,0.00011642,2]
[347780748,1736103060114,-872.95,0.00011642,2]
[347780749,1736103060124,-500.0,0.00011642,2]
[347780750,1736103060134,-1665.48,0.00011642,2]
[347780751,1736103060144,-500.0,0.00011642,2]
[347780752,1736103060154,-500.0,0.00011642,2]
[347780753,1736103060164,-277.96361285,0.00011642,2]
[347780754,1736103060174,-500.0,0.00011642,2]
[347780755,1736103060183,-2434.41,0.00011642,2]
[347780756,1736103060196,-500.0,0.00011642,2]
[347780757,1736103060207,-500.0,0.00011643,2]
[347780758,1736103060216,-500.0,0.00011643,2]
[347780759,1736103060226,-218.408779,0.00011643,2]
[347780760,1736103060238,-218.408779,0.00011643,2]
[347780761,1736103060249,-1037.03,0.00011643,2]
[347780762,1736103060259,-500.0,0.00011643,2]
[347780763,1736103060269,-1321.86,0.00011643,2]
[347780764,1736103060279,-1501.02,0.00011643,2]
[347780765,1736103060288,-500.0,0.00011643,2]
[347780766,1736103060298,-500.0,0.00011643,2]
[347780767,1736103060309,-500.0,0.00011643,2]
[347780768,1736103060319,-583.35,0.00011643,2]
[347780769,1736103060329,-795.210006,0.00011643,2]
[347780770,1736103060339,-500.0,0.00011643,2]
[347780771,1736103060348,-1284.85,0.00011643,2]
[347780772,1736103060359,-1730.75,0.00011643,2]
[347780773,1736103060368,-642.913233,0.00011643,2]
[347780774,1736103060378,-514.04,0.00011643,2]
[347780775,1736103060388,-687.23,0.00011643,2]
[347780776,1736103060398,-1931.78,0.00011643,2]
[347780777,1736103060408,-500.0,0.00011643,2]
[347780778,1736103060417,-514.31,0.00011643,2]
[347780779,1736103060427,-260.28,0.00011643,2]
[347780780,1736103060437,-500.0,0.00011643,2]
[347780781,1736103060447,-1810.87,0.00011643,2]
[347780782,1736103060457,-697.54,0.00011643,2]
[347780783,1736103060468,-790.77,0.00011643,2]
[347780784,1736103060478,-500.0,0.00011643,2]
[347780785,1736103060488,-500.0,0.00011643,2]
[347780786,1736103060498,-500.0,0.00011643,2]
[347780787,1736103060508,-822.61,0.00011643,2]
[347780788,1736103060519,-516.78,0.00011643,2]
[347780789,1736103060528,-500.0,0.00011643,2]
[347780790,1736103060538,-910.99,0.00011643,2]
[347780791,1736103060547,-1128.36,0.00011643,2]
[347780792,1736103060557,-807.45,0.00011643,2]
[347780793,1736103060568,-1090.33,0.00011643,2]
[347780794,1736103060578,-1664.66,0.00011643,2]
[347780795,1736103060588,-2152.09,0.00011643,2]
[347780796,1736103060599,-545.21,0.00011643,2]
[347780797,1736103060609,-617.54,0.00011643,2]
[347780798,1736103060619,-1115.15,0.00011643,2]
[347780799,1736103060629,-500.0,0.00011643,2]
[347780800,1736103060640,-631.73,0.00011643,2]
[347780801,1736103060651,-2004.35,0.00011643,2]
[347780802,1736103060662,-500.0,0.00011643,2]
[347780803,1736103060672,-906.64,0.00011643,2]
[347780804,1736103060682,-680.52,0.00011643,2]
[347780805,1736103060692,-1427.5,0.00011643,2]
[347780806,1736103060703,-782.8,0.00011643,2]
[347780807,1736103060713,-1891.76,0.00011643,2]
[347780808,1736103060723,-500.0,0.00011643,2]
[347780809,1736103060734,-22556.4981084,0.00011689,2]
[347780810,1736103060745,-20935.17038969,0.00011769,2]
[347780811,1736103060754,-8500.0,0.00011771,2]
[347780812,1736103060764,-8500.0,0.0001178,2]
[347780813,1736103060774,-567.0,0.00011781,2]
[347780814,1736103060784,-200.0,0.000118,2]
[347780815,1736103060794,-1200.0,0.00011812,2]
[347780816,1736103060804,-500.0,0.00011812,2]
[347780817,1736103060814,-4452.97886716,0.00011817,2]
[347780818,1736103060824,-167.0,0.00011855,2]
[347780819,1736103060834,-250.0,0.00011855,2]
[347780820,1736103060844,-7690.78256372,0.00011858,4]
[347780821,1736103060855,-1029.96,0.00011873,2]
[347780822,1736103060864,-1239.98,0.00011874,2]
[347780823,1736103060875,-509.56,0.00011874,2]
[347780824,1736103060885,-741.25,0.00011874,2]
[347780825,1736103060896,-618.04,0.00011874,2]
[347780826,1736103060906,-615.62,0.00011874,2]
[347780827,1736103060916,-500.0,0.00011874,2]
[347780828,1736103060926,-472.96308262,0.00011874,2]
[347780829,1736103060936,-3241.91239668,0.000119,2]
[347780830,1736103060955,-590.17424705,0.000119,2]
[347780831,1736103060967,-2033.6999997,0.000119,2]
[347780832,1736103060980,-16317.0032043,0.000119,2]
[347780833,1736103060994,-10110.07493859,0.000119,2]
[347780834,1736103061030,-19627.23350529,0.000119,2]
[347780835,1736103061044,-4834.5089715,0.000119,2]
[347780836,1736103061056,-1697.85,0.000119,2]
[347780837,1736103061069,-682.65982,0.000119,2]
[347780838,1736103061081,-789.1538285,0.000119,2]
[347780839,1736103061094,-606.78,0.000119,2]
[347780840,1736103061394,-322.10259032,0.00010422,2]
[347780841,1736103061404,-150.0,0.00010478,2]
[347780842,1736103061414,-1980.83,0.00011369,2]
[347780843,1736103061424,-1980.83,0.00011643,2]
[347780844,1736103061434,-5135.94908839,0.000119,2]
[347780845,1736103061443,-858.91914799,0.000119,2]
[347780846,1736103061457,-20935.17038969,0.0001191,2]
[347780847,1736103061469,-500.0,0.00011915,2]
[347780848,1736103061480,-500.0,0.00011915,2]
[347780849,1736103061490,-326.96,0.00011916,2]
[347780850,1736103061500,-452.36,0.00011916,2]
[347780851,1736103061509,-592.62,0.00011916,2]
[347780852,1736103061519,-500.0,0.00011916,2]
[347780853,1736103061530,-500.0,0.00011916,2]
[347780854,1736103061539,-527.57,0.00011916,2]
[347780855,1736103061550,-500.0,0.00011916,2]
[347780856,1736103061560,-500.0,0.00011916,2]
[347780857,1736103061570,-381.06263821,0.00011916,2]
[347780858,1736103061579,-500.0,0.00011916,2]
[347780859,1736103061589,-500.0,0.00011916,2]
[347780860,1736103061600,-162.8,0.00011916,2]
[347780861,1736103061610,-549.73,0.00011916,2]
[347780862,1736103061620,-500.0,0.00011916,2]
[347780863,1736103061630,-500.0,0.00011916,2]
[347780864,1736103061640,-500.0,0.00011916,2]
[347780865,1736103061650,-574.69,0.00011916,2]
[347780866,1736103061659,-500.0,0.00011916,2]
[347780867,1736103061669,-500.0,0.00011916,2]
[347780868,1736103061679,-500.0,0.00011916,2]
[347780869,1736103061689,-500.0,0.00011916,2]
[347780870,1736103061702,-472.65519057,0.00011916,2]
[347780871,1736103061712,-531.46,0.00011916,2]
[347780872,1736103061722,-500.0,0.00011916,2]
[347780873,1736103061732,-500.0,0.00011916,2]
[347780874,1736103061742,-359.92,0.00011916,2]
[347780875,1736103061752,-500.0,0.00011916,2]
[347780876,1736103061762,-500.0,0.00011916,2]
[347780877,1736103061772,-500.0,0.00011916,2]
[347780878,1736103061782,-500.0,0.00011916,2]
[347780879,1736103061792,-500.0,0.00011916,2]
[347780880,1736103061802,-500.0,0.00011916,2]
[347780881,1736103061811,-223.24,0.00011916,2]
[347780882,1736103061822,-536.12,0.00011916,2]
[347780883,1736103061832,-500.0,0.00011916,2]
[347780884,1736103061843,-500.0,0.00011916,2]
[347780885,1736103061853,-500.0,0.00011916,2]
[347780886,1736103061863,-500.0,0.00011916,2]
[347780887,1736103061873,-506.23,0.00011916,2]
[347780888,1736103061883,-500.0,0.00011916,2]
[347780889,1736103061893,-500.0,0.00011916,2]
[347780890,1736103061903,-541.12,0.00011916,2]
[347780891,1736103061912,-529.96,0.00011916,2]
[347780892,1736103061922,-500.0,0.00011916,2]
[347780893,1736103061933,-500.0,0.00011916,2]
[347780894,1736103061946,-221.16,0.00011916,2]
[347780895,1736103061956,-500.0,0.00011916,2]
[347780896,1736103061966,-500.0,0.00011916,2]
[347780897,1736103061977,-207.64,0.00011916,2]
[347780898,1736103061987,-500.0,0.00011916,2]
[347780899,1736103061998,-500.0,0.00011916,2]
[347780900,1736103062009,-576.97,0.00011916,2]
[347780901,1736103062020,-806.04,0.00011916,2]
[347780902,1736103062030,-500.0,0.00011916,2]
[347780903,1736103062040,-500.0,0.00011916,2]
[347780904,1736103062051,-1511.62,0.00011916,2]
[347780905,1736103062061,-500.0,0.00011916,2]
[347780906,1736103062072,-500.0,0.00011916,2]
[347780907,1736103062083,-625.8,0.00011916,2]
[347780908,1736103062093,-500.0,0.00011916,2]
[347780909,1736103062103,-500.0,0.00011916,2]
[347780910,1736103062113,-500.0,0.00011916,2]
[347780911,1736103062123,-621.59,0.00011916,2]
[347780912,1736103062134,-958.77,0.00011916,2]
[347780913,1736103062144,-878.65,0.00011916,2]
[347780914,1736103062154,-500.0,0.00011916,2]
[347780915,1736103062164,-1241.97,0.00011916,2]
[347780916,1736103062174,-752.45,0.00011916,2]
[347780917,1736103062184,-500.0,0.00011916,2]
[347780918,1736103062199,-500.0,0.00011916,2]
[347780919,1736103062209,-1313.29,0.00011916,2]
[347780920,1736103062219,-500.0,0.00011916,2]
[347780921,1736103062230,-680.95,0.00011916,2]
[347780922,1736103062242,-500.0,0.00011916,2]
[347780923,1736103062252,-316.52945148,0.00011916,2]
[347780924,1736103062262,-500.0,0.00011916,2]
[347780925,1736103062274,-1684.17,0.00011916,2]
[347780926,1736103062285,-314.74533621,0.00011916,2]
[347780927,1736103062295,-500.0,0.00011916,2]
[347780928,1736103062305,-848.15,0.00011916,2]
[347780929,1736103062316,-500.0,0.00011916,2]
[347780930,1736103062326,-500.0,0.00011916,2]
[347780931,1736103062336,-1136.02,0.00011916,2]
[347780932,1736103062346,-1677.47,0.00011916,2]
[347780933,1736103062357,-397.86720822,0.00011916,2]
[347780934,1736103062367,-1437.26,0.00011916,2]
[347780935,1736103062378,-735.56,0.00011916,2]
[347780936,1736103062388,-1062.37,0.00011916,2]
[347780937,1736103062398,-535.81,0.00011916,2]
[347780938,1736103062409,-500.0,0.00011916,2]
[347780939,1736103062419,-500.0,0.00011916,2]
[347780940,1736103062429,-645.47,0.00011916,2]
[347780941,1736103062440,-2163.21,0.00011916,2]
[347780942,1736103062450,-2584.43,0.00011916,2]
[347780943,1736103062461,-872.95,0.00011916,2]
[347780944,1736103062471,-500.0,0.00011916,2]
[347780945,1736103062481,-500.0,0.00011916,2]
[347780946,1736103062492,-1665.48,0.00011916,2]
[347780947,1736103062502,-500.0,0.00011916,2]
[347780948,1736103062512,-500.0,0.00011916,2]
[347780949,1736103062522,-2434.41,0.00011916,2]
[347780950,1736103062532,-500.0,0.00011916,2]
[347780951,1736103062744,-1037.03,0.00011917,2]
[347780952,1736103062764,-1321.86,0.00011917,2]
[347780953,1736103062774,-1501.02,0.00011917,2]
[347780954,1736103062784,-500.0,0.00011917,2]
[347780955,1736103062795,-343.28,0.00011917,2]
[347780956,1736103062806,-583.35,0.00011917,2]
[347780957,1736103062816,-795.210006,0.00011917,2]
[347780958,1736103062825,-500.0,0.00011917,2]
[347780959,1736103062835,-1284.85,0.00011917,2]
[347780960,1736103062845,-1730.75,0.00011917,2]
[347780961,1736103062855,-642.913233,0.00011917,2]
[347780962,1736103062865,-514.04,0.00011917,2]
[347780963,1736103062875,-687.23,0.00011917,2]
[347780964,1736103062885,-1931.78,0.00011917,2]
[347780965,1736103062895,-500.0,0.00011917,2]
[347780966,1736103062904,-514.31,0.00011917,2]
[347780967,1736103062914,-500.0,0.00011917,2]
[347780968,1736103062923,-1810.87,0.00011917,2]
[347780969,1736103062934,-697.54,0.00011917,2]
[347780970,1736103062944,-790.77,0.00011917,2]
[347780971,1736103062955,-500.0,0.00011917,2]
[347780972,1736103062964,-500.0,0.00011917,2]
[347780973,1736103062975,-500.0,0.00011917,2]
[347780974,1736103062984,-822.61,0.00011917,2]
[347780975,1736103062994,-516.78,0.00011917,2]
[347780976,1736103063004,-500.0,0.00011917,2]
[347780977,1736103063014,-910.99,0.00011917,2]
[347780978,1736103063025,-1128.36,0.00011917,2]
[347780979,1736103063034,-807.45,0.00011917,2]
[347780980,1736103063045,-1090.33,0.00011917,2]
[347780981,1736103063056,-1664.66,0.00011917,2]
[347780982,1736103063067,-2152.09,0.00011917,2]
[347780983,1736103063076,-545.21,0.00011917,2]
[347780984,1736103063087,-617.54,0.00011917,2]
[347780985,1736103063097,-1115.15,0.00011917,2]
[347780986,1736103063108,-631.73,0.00011917,2]
[347780987,1736103063118,-2004.35,0.00011917,2]
[347780988,1736103063129,-500.0,0.00011917,2]
[347780989,1736103063139,-906.64,0.00011917,2]
[347780990,1736103063149,-680.52,0.00011917,2]
[347780991,1736103063159,-1427.5,0.00011917,2]
[347780992,1736103063169,-782.8,0.00011917,2]
[347780993,1736103063180,-1891.76,0.00011917,2]
[347780994,1736103063192,-500.0,0.00011917,2]
[347780995,1736103063204,-1980.83,0.00011917,2]
[347780996,1736103063214,-22556.4981084,0.00011944,2]
[347780997,1736103063224,-567.0,0.00011967,2]
[347780998,1736103063237,-50000.0,0.0001198,2]
[347780999,1736103063247,-218.408779,0.0001198,2]
[347781000,1736103063258,-218.408779,0.0001198,2]
[347781001,1736103063268,-5065.881,0.00011982,2]
[347781002,1736103063278,-210.197,0.00011982,2]
[347781003,1736103063289,-5800.0,0.00011988,2]
[347781004,1736103063299,-5800.0,0.00011996,2]
[347781005,1736103063308,-5414.85602662,0.00012,2]
[347781006,1736103063317,-1319.33,0.00012,2]
[347781007,1736103063327,-3000.0,0.00012,2]
[347781008,1736103063337,-3000.0,0.00012,2]
[347781009,1736103063347,-3000.0,0.00012,2]
[347781010,1736103063358,-3000.0,0.00012,2]
[347781011,1736103063369,-3000.0,0.00012,2]
[347781012,1736103063379,-2830.5,0.00012,2]
[347781013,1736103063390,-55464.72623023,0.00012,2]
[347781014,1736103063404,-313.4050256,0.00012,2]
[347781015,1736103063422,-1312.499999,0.00012,2]
[347781016,1736103063434,-4012.43031184,0.00012,2]
[347781017,1736103063448,-9400.0,0.00012,2]
[347781018,1736103063466,-9257.30747901,0.00012,2]
[347781019,1736103063490,-1047.98945583,0.00012,2]
[347781020,1736103063502,-1198.79405272,0.00012,2]
[347781021,1736103097060,5000.0,0.0002,120]
[347781771,1736104232125,-1057.0,7.373e-05,2]
[347781772,1736104232137,-1057.0,7.761e-05,2]
[347781773,1736104232150,-1057.0,8.17e-05,2]
[347781774,1736104232161,-1678.85,8.219e-05,2]
[347781775,1736104232171,-2737.68884443,8.6e-05,2]
[347781776,1736104232182,-1057.0,8.6e-05,2]
[347781777,1736104232194,-1057.0,9.052e-05,2]
[347781778,1736104232205,-250.0,9.229e-05,2]
[347781779,1736104232217,-160.85,9.465e-05,2]
[347781780,1736104232228,-1057.0,9.529e-05,2]
[347781781,1736104232239,-1000.0,9.782e-05,2]
[347781784,1736104232251,-4614.46953823,9.861e-05,4]
[347781786,1736104232263,-1000.0,9.898e-05,2]
[347781788,1736104232274,-4884.87309092,9.921e-05,2]
[347781790,1736104232287,-500.0,9.997e-05,2]
[347781793,1736104232299,-500.0,9.997e-05,2]
[347781795,1736104232310,-500.0,9.997e-05,2]
[347781796,1736104232322,-500.0,9.997e-05,2]
[347781797,1736104232333,-500.0,9.997e-05,2]
[347781798,1736104232345,-500.0,9.997e-05,2]
[347781799,1736104232355,-500.0,9.997e-05,2]